bitfinex/quotes_BTCUSD_20251104
["timestamp","ask_amount","ask_price","bid_price","bid_amount"]
[1762268356455,0.23518587,104490.0,104480.0,0.00930461]
[1762268357264,0.26690587,104490.0,104480.0,0.00930461]
[1762268358311,0.23518587,104490.0,104480.0,0.2007288]
[1762268358969,0.26690587,104490.0,104480.0,0.00930461]
[1762268359183,0.31445727,104490.0,104480.0,0.00930461]
[1762268359895,0.31445727,104490.0,104480.0,0.2007288]
[1762268360120,0.31445727,104490.0,104480.0,0.00930461]
[1762268361657,0.31445727,104490.0,104480.0,0.2007288]
[1762268361871,0.31445727,104490.0,104480.0,0.00930461]
[1762268362283,0.28273727,104490.0,104480.0,0.2007288]
[1762268362697,0.26690587,104490.0,104480.0,0.2007288]
[1762268362910,0.26690587,104490.0,104480.0,0.00930461]
[1762268365537,0.99274898,104490.0,104480.0,0.00930461]
[1762268367302,0.99174898,104490.0,104480.0,0.00730461]
[1762268367535,0.99174898,104490.0,104480.0,0.02030461]
[1762268367787,1.08832504,104490.0,104480.0,0.02030461]
[1762268368042,0.36048193,104490.0,104480.0,0.01330461]
[1762268368296,0.26790587,104490.0,104480.0,0.01930461]
[1762268368736,1.08922805,104490.0,104480.0,0.01930461]
[1762268369617,0.99374898,104490.0,104480.0,0.01930461]
[1762268369824,0.26790587,104490.0,104480.0,0.01930461]
[1762268370489,0.36338494,104490.0,104480.0,0.01930461]
[1762268370691,0.457961,104490.0,104480.0,0.01930461]
[1762268371377,0.23397587,104490.0,104480.0,0.01930461]
[1762268371635,0.26694587,104490.0,104480.0,0.01930461]
[1762268372089,0.07554,104490.0,104480.0,0.2107288]
[1762268372314,0.004,104490.0,104480.0,0.2107288]
[1762268372533,0.002,104490.0,104480.0,0.2494888]
[1762268372750,0.20860921,104500.0,104480.0,0.2364888]
[1762268372990,0.01931,104490.0,104480.0,0.2374888]
[1762268373438,0.23206587,104490.0,104480.0,0.2374888]
[1762268374065,0.22806587,104490.0,104480.0,0.2364888]
[1762268374276,0.24106587,104490.0,104480.0,0.2374888]
[1762268374488,0.04966,104490.0,104480.0,0.2434888]
[1762268374701,0.02831,104490.0,104480.0,0.2374888]
[1762268375211,0.01685,104530.0,104520.0,0.19135093]
[1762268375445,0.01786355,104540.0,104530.0,0.19133263]
[1762268375678,0.00255355,104540.0,104530.0,0.19133263]
[1762268376140,0.00255355,104540.0,104520.0,0.23611093]
[1762268376359,0.02404776,104540.0,104530.0,0.19133263]
[1762268376593,0.21536208,104540.0,104530.0,0.19133263]
[1762268377053,0.02404776,104540.0,104530.0,0.19133263]
[1762268377269,0.00269776,104540.0,104530.0,0.19103263]
[1762268377506,0.01069776,104540.0,104530.0,0.19203263]
[1762268378134,0.01069776,104540.0,104530.0,0.001]
[1762268378357,0.03204776,104540.0,104530.0,0.04572]
[1762268378568,0.01069776,104540.0,104530.0,0.04572]
[1762268379035,0.02069776,104540.0,104530.0,0.04572]
[1762268379250,0.02069776,104540.0,104530.0,0.24572]
[1762268380591,0.01069776,104540.0,104530.0,0.24572]
[1762268380817,0.00269776,104540.0,104530.0,0.24472]
[1762268381036,0.00869776,104540.0,104530.0,0.24472]
[1762268381251,0.01469776,104540.0,104530.0,0.24572]
[1762268381476,0.00869776,104540.0,104530.0,0.24572]
[1762268381690,0.01469776,104540.0,104530.0,0.24572]
[1762268381918,0.01469776,104540.0,104530.0,0.31899082]
[1762268383011,0.06901776,104540.0,104530.0,0.001]
[1762268383261,0.16908886,104540.0,104530.0,0.001]
[1762268383481,0.08807177,104540.0,104530.0,0.001]
[1762268383712,0.06901776,104540.0,104530.0,0.001]
[1762268384176,0.01469776,104540.0,104530.0,0.001]
[1762268384630,0.00269776,104540.0,104530.0,0.01056443]
[1762268384838,0.00269776,104540.0,104530.0,0.004]
[1762268385045,0.00269776,104540.0,104530.0,0.01510412]
[1762268385270,0.00269776,104540.0,104530.0,0.01710412]
[1762268385486,0.00569776,104540.0,104530.0,0.01710412]
[1762268386367,0.00569776,104540.0,104530.0,0.01110412]
[1762268386597,0.00969776,104540.0,104530.0,0.01110412]
[1762268386810,0.00969776,104540.0,104520.0,0.52638636]
[1762268387597,0.00969776,104540.0,104530.0,0.01192621]
[1762268387598,0.00569776,104540.0,104530.0,0.01192621]
[1762268387995,0.00269776,104540.0,104530.0,0.01192621]
[1762268388971,0.00469776,104540.0,104530.0,0.01192621]
[1762268389410,0.00469776,104540.0,104530.0,0.04063707]
[1762268390047,0.00469776,104540.0,104530.0,0.02871086]
[1762268390255,0.00469776,104540.0,104520.0,0.51638637]
[1762268390484,0.00469776,104540.0,104520.0,0.54509984]
[1762268390677,0.00669776,104540.0,104520.0,0.54509984]
[1762268390947,0.00669776,104540.0,104520.0,0.34509984]
[1762268391163,0.00469776,104540.0,104520.0,0.54509984]
[1762268391382,0.01928776,104540.0,104520.0,0.47339347]
[1762268391600,0.01928776,104540.0,104520.0,0.24568]
[1762268392034,0.00269776,104540.0,104520.0,0.24568]
[1762268392272,0.00269776,104540.0,104520.0,0.24468]
[1762268392711,0.01928776,104540.0,104520.0,0.24568]
[1762268392921,0.01928776,104540.0,104520.0,0.24468]
[1762268393347,0.00469776,104540.0,104520.0,0.24468]
[1762268393789,0.01928776,104540.0,104520.0,0.24468]
[1762268394231,0.02328776,104540.0,104520.0,0.24468]
[1762268394439,0.02428776,104540.0,104520.0,0.24468]
[1762268394884,0.02428776,104540.0,104520.0,0.04468]
[1762268395110,0.00769776,104540.0,104520.0,0.25034191]
[1762268395327,0.00769776,104540.0,104530.0,0.00566161]
[1762268395556,0.00769776,104540.0,104520.0,0.24468]
[1762268395965,0.00769776,104540.0,104530.0,0.2]
[1762268396414,0.00369776,104540.0,104530.0,0.2]
[1762268396932,0.00969776,104540.0,104530.0,0.2]
[1762268397340,0.00269776,104540.0,104530.0,0.2]
[1762268397559,0.06068776,104540.0,104520.0,0.04468]
[1762268397803,0.01659,104530.0,104520.0,0.04468]
[1762268398875,0.03872,104530.0,104520.0,0.04468]
[1762268399285,0.01659,104530.0,104520.0,0.04468]
[1762268399509,0.07158,104530.0,104520.0,0.05168]
[1762268399717,0.03972,104530.0,104520.0,0.05168]
[1762268399929,0.01859,104530.0,104520.0,0.06168]
[1762268400147,0.04072,104530.0,104520.0,0.06168]
[1762268400364,0.002,104530.0,104520.0,0.06168]
[1762268400598,0.001,104530.0,104520.0,0.45168]
[1762268401037,0.001,104530.0,104520.0,0.412]
[1762268401269,0.001,104530.0,104520.0,0.4566]
[1762268401690,0.001,104530.0,104520.0,0.4516]
[1762268401908,0.00269776,104540.0,104520.0,0.4446]
[1762268402115,0.00269776,104540.0,104530.0,0.00374596]
[1762268402774,0.00269776,104540.0,104530.0,0.01052331]
[1762268402982,0.004,104530.0,104520.0,0.4456]
[1762268403222,0.004,104530.0,104520.0,0.2446]
[1762268403432,0.00269776,104540.0,104530.0,0.21003999]
[1762268403620,0.0002,104570.0,104560.0,0.2]
[1762268403851,0.00068167,104570.0,104560.0,0.0446]
[1762268404542,0.07372568,104570.0,104560.0,0.0446]
[1762268404778,0.05467167,104570.0,104560.0,0.0446]
[1762268405415,0.05867167,104570.0,104560.0,0.0446]
[1762268405873,0.05467167,104570.0,104560.0,0.0446]
[1762268406310,0.05767167,104570.0,104560.0,0.0476]
[1762268406520,0.05767167,104570.0,104560.0,0.0446]
[1762268406746,0.79007775,104570.0,104540.0,0.2446]
[1762268406929,0.03872,104550.0,104540.0,0.0446]
[1762268407174,0.05777401,104550.0,104540.0,0.0446]
[1762268407382,0.07058,104550.0,104540.0,0.0446]
[1762268407807,0.08963401,104550.0,104530.0,4e-05]
[1762268408050,0.05399,104540.0,104530.0,4e-05]
[1762268408263,0.03872,104530.0,104520.0,0.0444]
[1762268408897,0.07058,104530.0,104520.0,0.0444]
[1762268409100,0.03872,104530.0,104520.0,0.0444]
[1762268409556,0.03872,104530.0,104520.0,0.04454421]
[1762268409557,0.01659,104530.0,104520.0,0.04454421]
[1762268409777,0.0590148,104550.0,104520.0,0.04454421]
[1762268409996,0.02213,104530.0,104520.0,0.04454421]
[1762268410252,0.03186,104540.0,104520.0,0.04454421]
[1762268410487,0.03186,104540.0,104520.0,0.05054421]
[1762268410698,0.02213,104530.0,104520.0,0.05054421]
[1762268410916,0.02213,104530.0,104520.0,0.04454421]
[1762268411134,0.03872,104530.0,104520.0,0.04454421]
[1762268411343,0.080979,104530.0,104520.0,0.04454421]
[1762268411574,0.080979,104530.0,104520.0,0.04458421]
[1762268411823,0.049119,104530.0,104520.0,0.04458421]
[1762268412075,0.080979,104530.0,104520.0,0.04458421]
[1762268412298,0.086979,104530.0,104520.0,0.04458421]
[1762268412560,0.081979,104530.0,104520.0,0.04458421]
[1762268412805,0.081979,104530.0,104520.0,0.05258421]
[1762268413257,0.02259,104530.0,104520.0,0.05258421]
[1762268414157,0.006,104530.0,104520.0,0.05258421]
[1762268414366,0.006,104530.0,104520.0,0.27676703]
[1762268414589,0.006,104530.0,104520.0,0.2625842]
[1762268414801,0.006,104530.0,104520.0,0.29129528]
[1762268415009,0.00023893,104550.0,104540.0,0.2]
[1762268415222,0.00023893,104550.0,104530.0,0.2]
[1762268416123,0.001,104530.0,104520.0,0.25415175]
[1762268416348,0.02055,104540.0,104520.0,0.25415175]
[1762268416561,0.04030373,104550.0,104520.0,0.25415175]
[1762268416769,0.04885489,104550.0,104520.0,0.25415175]
[1762268416985,0.03929009,104550.0,104520.0,0.25415175]
[1762268417214,0.00023893,104550.0,104520.0,0.25415175]
[1762268417429,0.00023893,104550.0,104530.0,0.21148967]
[1762268417648,0.00023893,104550.0,104540.0,0.04452]
[1762268417877,0.00023893,104550.0,104540.0,0.24452]
[1762268417878,0.00523893,104550.0,104540.0,0.24452]
[1762268418090,0.00023893,104550.0,104540.0,0.24452]
[1762268418537,0.00423893,104550.0,104540.0,0.24452]
[1762268418758,0.00023893,104550.0,104540.0,0.24452]
[1762268419202,0.00423893,104550.0,104540.0,0.24452]
[1762268419429,0.00023893,104550.0,104540.0,0.24452]
[1762268419642,0.00023893,104550.0,104540.0,0.24456]
[1762268420303,0.00523893,104550.0,104540.0,0.24456]
[1762268420759,0.00023893,104550.0,104540.0,0.2446]
[1762268421496,0.00523893,104550.0,104540.0,0.2446]
[1762268421739,0.00023893,104550.0,104540.0,0.2446]
[1762268422243,0.00223893,104550.0,104540.0,0.2446]
[1762268422491,0.00023893,104550.0,104540.0,0.2446]
[1762268422727,0.00623893,104550.0,104540.0,0.2446]
[1762268423760,0.00623893,104550.0,104540.0,0.0446]
[1762268424023,0.07277893,104550.0,104540.0,0.0446]
[1762268424292,0.07277893,104550.0,104540.0,8e-05]
[1762268424293,0.77454672,104550.0,104540.0,8e-05]
[1762268424534,0.75549271,104550.0,104540.0,8e-05]
[1762268424819,0.75549271,104550.0,104520.0,0.00018421]
[1762268424820,0.76505751,104550.0,104520.0,0.00018421]
[1762268425018,0.65789987,104530.0,104520.0,0.00018421]
[1762268425235,0.19288507,104530.0,104520.0,0.00018421]
[1762268425453,0.06654,104530.0,104520.0,0.00018421]
[1762268425638,0.70745388,104530.0,104520.0,0.00018421]
[1762268425890,0.68839987,104530.0,104520.0,0.00018421]
[1762268426912,0.15263968,104530.0,104520.0,0.00718421]
[1762268427145,0.6213542,104530.0,104520.0,0.00718421]
[1762268427415,0.66443561,104530.0,104520.0,0.00718421]
[1762268427918,0.12967542,104530.0,104520.0,0.01818421]
[1762268428166,0.14972943,104530.0,104520.0,0.03118421]
[1762268428374,0.06854,104530.0,104520.0,0.03118421]
[1762268428630,0.01749,104530.0,104520.0,0.03118421]
[1762268428882,0.002,104530.0,104520.0,0.23118421]
[1762268429124,0.002,104530.0,104520.0,0.43118421]
[1762268429396,0.00023893,104550.0,104520.0,0.44075175]
[1762268429656,0.00023893,104550.0,104540.0,0.4]
[1762268429916,0.00023893,104550.0,104540.0,0.44448]
[1762268431118,0.00223893,104550.0,104540.0,0.44448]
[1762268431815,0.00723893,104550.0,104540.0,0.44448]
[1762268432241,0.00523893,104550.0,104540.0,0.44448]
[1762268432724,1e-08,104550.0,104540.0,0.45447999]
[1762268432941,0.01569,104610.0,104580.0,0.4]
[1762268433160,0.01569,104610.0,104590.0,0.05583097]
[1762268433819,0.01901,104600.0,104590.0,0.04448]
[1762268434035,0.04648,104610.0,104590.0,0.04448]
[1762268434282,0.01949197,104600.0,104590.0,0.04448]
[1762268434710,0.01949197,104600.0,104590.0,0.04452]
[1762268434927,0.00048197,104600.0,104590.0,0.04452]
[1762268435400,0.05028197,104600.0,104590.0,0.04452]
[1762268435819,0.05028197,104600.0,104590.0,0.04456]
[1762268436041,0.00048197,104600.0,104590.0,0.04456]
[1762268436481,0.00948197,104600.0,104590.0,0.04456]
[1762268436701,0.00948197,104600.0,104590.0,0.25615958]
[1762268436925,0.00948197,104600.0,104590.0,0.04456]
[1762268437669,0.02764197,104600.0,104590.0,0.04456]
[1762268437880,0.01248197,104600.0,104590.0,0.04456]
[1762268438098,0.00948197,104600.0,104590.0,0.04456]
[1762268438349,0.00948197,104600.0,104590.0,0.23578287]
[1762268438558,0.01948197,104600.0,104590.0,0.23578287]
[1762268438776,0.24485655,104600.0,104590.0,0.04456]
[1762268438992,0.03464197,104600.0,104590.0,0.23578287]
[1762268439201,0.22584655,104600.0,104590.0,0.23578287]
[1762268439428,0.01948197,104600.0,104590.0,0.23578287]
[1762268439865,0.01948197,104600.0,104590.0,0.63578287]
[1762268441206,0.0002,104610.0,104600.0,0.19120458]
[1762268441509,0.0002,104630.0,104610.0,0.59118631]
[1762268441716,0.00034455,104630.0,104620.0,0.25472483]
[1762268441942,0.00034455,104630.0,104620.0,0.23560803]
[1762268442600,0.00034455,104630.0,104620.0,0.19116803]
[1762268442785,0.20665431,104630.0,104620.0,0.23560803]
[1762268443260,0.22566431,104630.0,104620.0,0.04444]
[1762268443485,0.2981339,104630.0,104620.0,0.04444]
[1762268443721,0.19118631,104610.0,104590.0,0.20964114]
[1762268443942,0.21019631,104610.0,104600.0,0.04444]
[1762268444176,0.22197631,104610.0,104600.0,0.04444]
[1762268444396,0.24241897,104610.0,104600.0,0.04444]
[1762268444631,0.28673514,104610.0,104600.0,0.04444]
[1762268445078,0.19120458,104600.0,104590.0,8e-05]
[1762268445306,0.77789477,104600.0,104590.0,8e-05]
[1762268445525,0.32823426,104600.0,104590.0,8e-05]
[1762268445743,0.32823426,104600.0,104570.0,0.0444]
[1762268445744,0.19124115,104580.0,104570.0,0.0444]
[1762268445964,0.02049,104580.0,104570.0,0.23565944]
[1762268446175,0.26594248,104610.0,104580.0,0.19124115]
[1762268446392,0.22162631,104610.0,104590.0,0.19122259]
[1762268446837,0.22162631,104610.0,104590.0,0.20622259]
[1762268446838,0.19120458,104600.0,104590.0,0.20622259]
[1762268447047,0.21169458,104600.0,104590.0,0.25062259]
[1762268447474,0.21169458,104600.0,104590.0,0.23962259]
[1762268447699,0.02049,104600.0,104590.0,0.23562259]
[1762268447962,0.1912051,104600.0,104570.0,0.2]
[1762268448196,0.75705339,104580.0,104550.0,0.0095648]
[1762268448448,0.01543,104570.0,104560.0,0.19127598]
[1762268448660,0.01543,104580.0,104570.0,0.19125944]
[1762268448878,0.01543,104590.0,104570.0,0.19125944]
[1762268449091,0.20665668,104590.0,104570.0,0.19125944]
[1762268449304,0.20665668,104590.0,104580.0,0.19124115]
[1762268449518,0.20665668,104590.0,104570.0,0.20125944]
[1762268449741,0.19124115,104580.0,104570.0,0.20125944]
[1762268449954,0.24217115,104580.0,104570.0,0.026]
[1762268450375,0.24217115,104580.0,104570.0,0.01]
[1762268450586,0.24217115,104580.0,104560.0,0.23567722]
[1762268450587,0.19125944,104570.0,104560.0,0.23567773]
[1762268450816,0.21173115,104580.0,104570.0,0.19125944]
[1762268451039,0.19124115,104580.0,104570.0,0.20525944]
[1762268451253,0.21173115,104580.0,104570.0,0.20525944]
[1762268451720,0.21244768,104580.0,104570.0,0.19125944]
[1762268451941,0.02120653,104580.0,104570.0,0.19125944]
[1762268452156,0.02120653,104580.0,104560.0,0.23567194]
[1762268452157,0.19125944,104570.0,104560.0,0.23567194]
[1762268452384,0.02049,104570.0,104560.0,0.23567773]
[1762268452606,0.22368115,104580.0,104570.0,0.19125944]
[1762268452607,0.03129273,104580.0,104570.0,0.19125944]
[1762268452828,0.00085273,104580.0,104570.0,0.19125944]
[1762268453039,0.19809388,104580.0,104570.0,0.19125944]
[1762268453463,0.19809388,104580.0,104560.0,0.43567773]
[1762268453677,0.19125944,104570.0,104560.0,0.23567773]
[1762268453887,0.001,104570.0,104560.0,0.23567773]
[1762268454110,0.19225944,104570.0,104560.0,0.23567773]
[1762268454321,0.006,104580.0,104570.0,0.19125944]
[1762268454536,0.19724115,104580.0,104560.0,0.23567773]
[1762268454752,0.22968115,104580.0,104560.0,0.23567773]
[1762268454968,0.22168115,104580.0,104560.0,0.23567773]
[1762268455202,0.22168115,104580.0,104570.0,0.19125944]
[1762268455418,0.003,104580.0,104570.0,0.20804554]
[1762268455639,0.003,104580.0,104570.0,0.19125944]
[1762268455853,0.21473115,104580.0,104570.0,0.19125944]
[1762268456296,0.28432407,104580.0,104570.0,0.23565944]
[1762268456514,0.19127773,104560.0,104540.0,0.40087666]
[1762268456758,0.21178603,104550.0,104540.0,0.19131432]
[1762268456977,0.19131432,104540.0,104530.0,0.50609261]
[1762268457197,0.28253241,104550.0,104540.0,0.0444]
[1762268457424,0.29796241,104550.0,104540.0,0.0444]
[1762268457852,0.29796241,104550.0,104540.0,0.23571432]
[1762268458099,0.29796241,104550.0,104540.0,0.00048197]
[1762268458309,0.29796241,104550.0,104540.0,0.04484197]
[1762268458520,0.29896241,104550.0,104540.0,0.04484197]
[1762268458737,0.29796241,104550.0,104540.0,0.00048197]
[1762268458958,0.8337226,104550.0,104540.0,0.00048197]
[1762268459174,0.29796241,104550.0,104540.0,0.00048197]
[1762268459387,0.29796241,104550.0,104540.0,0.00548197]
[1762268459604,0.25765603,104550.0,104540.0,0.00548197]
[1762268460044,0.25765603,104550.0,104540.0,0.00048197]
[1762268460526,0.02049,104550.0,104540.0,0.00048197]
[1762268460746,0.03592,104550.0,104540.0,0.20179629]
[1762268460974,0.22721603,104550.0,104540.0,0.00048197]
[1762268461196,0.29952937,104550.0,104540.0,0.00048197]
[1762268461637,0.10823334,104550.0,104540.0,0.00048197]
[1762268461869,0.25765603,104550.0,104540.0,0.03148197]
[1762268462090,0.06636,104550.0,104540.0,0.22279629]
[1762268462315,0.01566889,104560.0,104550.0,0.19129603]
[1762268462539,0.20694662,104560.0,104550.0,0.23565603]
[1762268462757,0.25787662,104560.0,104550.0,0.04436]
[1762268462998,0.30279108,104560.0,104550.0,0.04436]
[1762268463931,0.06659889,104560.0,104550.0,0.23565603]
[1762268464381,0.06659889,104560.0,104550.0,0.27183831]
[1762268464382,0.00023889,104560.0,104550.0,0.27183831]
[1762268465052,0.01543,104610.0,104600.0,0.19120458]
[1762268465275,0.20661631,104610.0,104600.0,0.04436]
[1762268465502,0.19123626,104590.0,104570.0,0.03618228]
[1762268465758,0.19124115,104580.0,104570.0,0.19125857]
[1762268465991,0.02049,104590.0,104580.0,0.23560115]
[1762268466210,0.20079654,104600.0,104590.0,0.19122287]
[1762268466426,0.00014447,104600.0,104590.0,0.19122287]
[1762268468254,0.00114447,104600.0,104590.0,0.19122287]
[1762268468479,0.21283905,104600.0,104590.0,0.19122287]
[1762268468714,0.02163447,104600.0,104580.0,0.23560025]
[1762268468931,0.02163447,104600.0,104590.0,0.19122287]
[1762268468932,0.23870996,104600.0,104590.0,0.19122287]
[1762268469152,0.02163447,104600.0,104590.0,0.19122287]
[1762268469368,0.24327905,104600.0,104580.0,0.23560025]
[1762268469582,0.24327905,104600.0,104590.0,0.19122287]
[1762268469583,0.02163447,104600.0,104590.0,0.19122287]
[1762268469804,0.00114447,104600.0,104590.0,0.19122287]
[1762268470243,0.00114447,104600.0,104590.0,0.22740515]
[1762268470671,0.00014447,104600.0,104590.0,0.22740515]
[1762268471766,0.00014447,104600.0,104590.0,0.42740515]
[1762268474026,0.22726905,104600.0,104590.0,0.23554287]
[1762268474255,0.22726905,104600.0,104570.0,0.20082154]
[1762268474256,0.19122287,104590.0,104570.0,0.20082154]
[1762268474476,0.19122287,104590.0,104570.0,0.19125944]
[1762268474477,0.19124115,104580.0,104570.0,0.19125944]
[1762268474726,0.24217115,104580.0,104560.0,0.29645304]
[1762268474936,0.25353944,104570.0,104550.0,0.19129603]
[1762268475163,0.2980175,104570.0,104560.0,0.04432]
[1762268475401,0.10675806,104570.0,104560.0,0.23559773]
[1762268475632,0.22555944,104570.0,104560.0,0.23559773]
[1762268475822,0.25353944,104570.0,104560.0,0.04432]
[1762268476544,0.25353944,104570.0,104560.0,0.23559773]
[1762268476753,0.29430499,104570.0,104560.0,0.23559773]
[1762268476985,0.29430499,104570.0,104560.0,0.04432]
[1762268477628,0.29430499,104570.0,104560.0,0.006]
[1762268478060,0.29430499,104570.0,104560.0,0.014]
[1762268478533,0.29430499,104570.0,104560.0,0.008]
[1762268478794,0.19127773,104560.0,104550.0,0.04432]
[1762268479031,0.259426,104560.0,104550.0,0.04432]
[1762268479309,0.287406,104560.0,104550.0,0.04432]
[1762268479750,0.19132775,104550.0,104520.0,0.19139083]
[1762268479977,0.2109194,104540.0,104530.0,0.23565232]
[1762268480194,0.02798,104550.0,104540.0,0.19131432]
[1762268480413,0.19127987,104560.0,104550.0,0.19129603]
[1762268480636,0.21925987,104560.0,104550.0,0.19129603]
[1762268480866,0.04757,104560.0,104550.0,0.24261603]
[1762268481123,0.01959,104560.0,104550.0,0.23561603]
[1762268481621,0.25790174,104560.0,104550.0,0.04432]
[1762268481833,0.23884773,104560.0,104550.0,0.04932]
[1762268482267,0.01959,104560.0,104550.0,0.24061603]
[1762268482480,0.23884773,104560.0,104550.0,0.24761603]
[1762268482699,0.20620876,104570.0,104560.0,0.19127773]
[1762268482928,0.01494886,104570.0,104560.0,0.19127773]
[1762268483147,0.06251886,104570.0,104550.0,0.24761603]
[1762268483377,0.01959,104560.0,104550.0,0.27879831]
[1762268483602,0.04757,104560.0,104550.0,0.23561603]
[1762268483827,0.04757,104560.0,104550.0,0.26761603]
[1762268484048,0.04757,104560.0,104550.0,0.268098]
[1762268484271,0.01494886,104570.0,104560.0,0.19127773]
[1762268484713,0.03453886,104570.0,104560.0,0.19127773]
[1762268484923,0.01494886,104570.0,104560.0,0.19127773]
[1762268486276,0.20620885,104570.0,104550.0,0.236098]
[1762268486492,0.04053886,104570.0,104560.0,0.19127773]
[1762268486704,0.06851886,104570.0,104560.0,0.19127773]
[1762268486922,0.04253886,104570.0,104560.0,0.19127773]
[1762268487137,0.00623886,104570.0,104560.0,0.42746001]
[1762268487343,0.00023886,104570.0,104560.0,0.22746001]
[1762268487587,0.00423886,104570.0,104560.0,0.22746001]
[1762268488009,0.00023886,104570.0,104560.0,0.22746001]
[1762268488262,0.00223886,104570.0,104560.0,0.22746001]
[1762268488478,0.01694886,104570.0,104560.0,0.22746001]
[1762268488705,0.01694886,104570.0,104560.0,0.19127773]
[1762268488706,0.2277983,104570.0,104560.0,0.19127773]
[1762268488917,0.03653886,104570.0,104560.0,0.19127773]
[1762268489368,0.00223886,104570.0,104560.0,0.19127773]
[1762268490012,0.00023886,104570.0,104560.0,0.19127773]
[1762268490472,0.00623886,104570.0,104560.0,0.19127773]
[1762268490692,0.01894886,104570.0,104560.0,0.19127773]
[1762268490934,0.01782886,104570.0,104560.0,0.22746001]
[1762268491143,0.00423886,104570.0,104560.0,0.22746001]
[1762268491609,0.01782886,104570.0,104560.0,0.22746001]
[1762268491826,0.00423886,104570.0,104560.0,0.22746001]
[1762268492052,0.01782886,104570.0,104560.0,0.22746001]
[1762268492265,0.08432611,104570.0,104560.0,0.19127773]
[1762268492481,0.01782886,104570.0,104560.0,0.19127773]
[1762268493379,0.06341886,104570.0,104550.0,0.19220197]
[1762268493561,0.01937,104560.0,104550.0,0.04480197]
[1762268493794,0.26424096,104560.0,104550.0,0.236098]
[1762268494017,0.26424096,104560.0,104550.0,0.04480197]
[1762268494313,0.26424096,104560.0,104550.0,0.04476197]
[1762268494548,0.26424096,104560.0,104550.0,0.191778]
[1762268494808,0.26624096,104560.0,104550.0,0.04476197]
[1762268495381,0.26624096,104560.0,104550.0,0.00048197]
[1762268496096,0.23886773,104560.0,104550.0,0.00048197]
[1762268496459,0.32496741,104560.0,104550.0,0.00048197]
[1762268496679,0.32296741,104560.0,104550.0,0.00048197]
[1762268496884,0.24186773,104560.0,104550.0,0.00748197]
[1762268497084,0.24186773,104560.0,104550.0,0.00048197]
[1762268497297,0.28156333,104560.0,104550.0,0.00048197]
[1762268497514,0.23686773,104560.0,104550.0,0.03548197]
[1762268497765,0.23686773,104560.0,104550.0,0.226778]
[1762268497974,0.04559,104560.0,104550.0,0.271058]
[1762268498188,0.23686773,104560.0,104550.0,0.271058]
[1762268498623,0.01382886,104570.0,104560.0,0.19127773]
[1762268499309,0.01382886,104570.0,104560.0,0.22746001]
[1762268499310,0.00023886,104570.0,104560.0,0.22746001]
[1762268500179,0.00023886,104570.0,104560.0,0.23746001]
[1762268500608,0.00023886,104570.0,104560.0,0.22746001]
[1762268503167,0.00023886,104570.0,104560.0,0.22946001]
[1762268503613,0.00023886,104570.0,104560.0,0.22746001]
[1762268504465,0.00023886,104570.0,104560.0,0.22946001]
[1762268505304,0.01543,104600.0,104590.0,0.19122287]
[1762268505519,0.01543,104600.0,104590.0,0.47164515]
[1762268505731,0.23300104,104630.0,104620.0,0.19116803]
[1762268505944,0.20651104,104630.0,104620.0,0.19116803]
[1762268506151,0.21765803,104620.0,104610.0,0.23542631]
[1762268506361,0.04495,104620.0,104610.0,0.23542631]
[1762268506575,0.04509452,104620.0,104610.0,0.23542631]
[1762268507007,0.00014452,104620.0,104610.0,0.27160859]
[1762268507236,0.04509452,104620.0,104610.0,0.23542631]
[1762268507657,0.04509452,104620.0,104610.0,0.24742631]
[1762268507894,0.26142301,104620.0,104610.0,0.05624]
[1762268508139,0.26142301,104620.0,104610.0,0.07024]
[1762268509194,0.26142301,104620.0,104610.0,0.05824]
[1762268509405,0.26142301,104620.0,104610.0,0.04424]
[1762268509611,0.2007743,104610.0,104590.0,0.23546287]
[1762268509846,0.03293,104600.0,104590.0,0.23546287]
[1762268510059,0.01447,104600.0,104590.0,0.23546287]
[1762268510266,0.22603141,104620.0,104610.0,0.19118631]
[1762268510490,0.01447,104600.0,104590.0,0.24502401]
[1762268510908,0.01447,104600.0,104590.0,0.24902401]
[1762268511114,0.01518632,104600.0,104590.0,0.24902401]
[1762268511322,0.03364632,104600.0,104590.0,0.24902401]
[1762268511526,0.01518632,104600.0,104590.0,0.24902401]
[1762268512207,0.00071632,104600.0,104590.0,0.24902401]
[1762268512426,0.00071632,104600.0,104590.0,0.28520629]
[1762268512640,0.00062068,104600.0,104590.0,0.68524629]
[1762268513096,0.00062068,104600.0,104590.0,0.68124629]
[1762268514872,1e-08,104600.0,104590.0,0.68124629]
[1762268515093,0.00014452,104620.0,104610.0,0.59118631]
[1762268515313,0.00014452,104620.0,104610.0,0.67156859]
[1762268515989,0.00062191,104620.0,104610.0,0.67156859]
[1762268516210,0.0002,104630.0,104620.0,0.19116803]
[1762268516431,0.0002,104630.0,104620.0,0.22735031]
[1762268516876,0.00043865,104630.0,104620.0,0.42735031]
[1762268517315,0.00043865,104630.0,104620.0,0.22735031]
[1762268517542,0.01490865,104630.0,104620.0,0.22735031]
[1762268517760,0.22451841,104630.0,104620.0,0.27155031]
[1762268517984,0.22451841,104630.0,104620.0,0.08238228]
[1762268518239,0.22451841,104630.0,104620.0,0.0462]
[1762268518240,0.25100841,104630.0,104620.0,0.0462]
[1762268518456,0.22451841,104630.0,104620.0,0.23740803]
[1762268518686,0.03336865,104630.0,104620.0,0.23740803]
[1762268518906,0.22451841,104630.0,104620.0,0.23740803]
[1762268519116,0.03336865,104630.0,104620.0,0.23540803]
[1762268519338,0.01490865,104630.0,104620.0,0.23540803]
[1762268519557,0.00043865,104630.0,104620.0,0.23540803]
[1762268519776,0.01490865,104630.0,104620.0,0.47159031]
[1762268519990,0.01490865,104630.0,104620.0,0.23540803]
[1762268520410,0.00043865,104630.0,104620.0,0.27159031]
[1762268521086,0.01490865,104630.0,104620.0,0.08042228]
[1762268521311,0.00043865,104630.0,104620.0,0.28536822]
[1762268521527,0.00043865,104630.0,104620.0,0.27159031]
[1762268521970,0.00043865,104630.0,104620.0,0.27109031]
[1762268522854,0.00043865,104630.0,104620.0,0.47309031]
[1762268523076,0.22451841,104630.0,104620.0,0.20004]
[1762268523329,0.29257394,104630.0,104620.0,4e-05]
[1762268523544,1.01707214,104630.0,104620.0,4e-05]
[1762268523768,0.19120458,104600.0,104590.0,4e-05]
[1762268523985,0.03293,104600.0,104590.0,0.23556708]
[1762268524197,0.01447,104600.0,104590.0,0.23556708]
[1762268524410,0.22413458,104600.0,104590.0,0.23556708]
[1762268524626,0.25062458,104600.0,104590.0,0.23556739]
[1762268524838,0.03293,104600.0,104590.0,0.23556739]
[1762268525045,0.21765803,104620.0,104610.0,0.19118631]
[1762268525268,0.01490865,104630.0,104610.0,0.23534631]